[Event "Late-Titled-Tuesday-Blitz-May-07-2024"]
[Site "Chess.com"]
[Date "2024.05.07"]
[Round "6"]
[White "BogdanDeac"]
[Black "Airquake"]
[Result "1-0"]
[WhiteElo "3119"]
[BlackElo "2844"]
[TimeControl "180+1"]
[EndTime "15:07:42 PDT"]
[Termination "BogdanDeac won on time"]

1. d4 {[%clk 0:03:00.9]} 1... Nf6 {[%clk 0:02:59.1]} 2. Nf3 {[%clk 0:03:01.1]}
2... e6 {[%clk 0:02:58.3]} 3. c4 {[%clk 0:03:00.4]} 3... d5 {[%clk 0:02:58.2]}
4. Nc3 {[%clk 0:03:00.6]} 4... Be7 {[%clk 0:02:56.9]} 5. g3 {[%clk 0:02:59.8]}
5... O-O {[%clk 0:02:56.7]} 6. Bg2 {[%clk 0:03:00.5]} 6... dxc4 {[%clk
0:02:54.6]} 7. Ne5 {[%clk 0:03:00.6]} 7... Nc6 {[%clk 0:02:54.5]} 8. Bxc6 {[%clk
0:03:00]} 8... bxc6 {[%clk 0:02:53.8]} 9. Nxc6 {[%clk 0:03:00.9]} 9... Qe8
{[%clk 0:02:53.6]} 10. Nxe7+ {[%clk 0:03:01.6]} 10... Qxe7 {[%clk 0:02:54.5]}
11. Qa4 {[%clk 0:03:01.9]} 11... Bb7 {[%clk 0:02:41.5]} 12. O-O {[%clk
0:02:48.6]} 12... c5 {[%clk 0:02:35.3]} 13. Qa3 {[%clk 0:02:40.7]} 13... Rfc8
{[%clk 0:02:14.4]} 14. f3 {[%clk 0:02:24.7]} 14... Nd5 {[%clk 0:01:53.7]} 15.
dxc5 {[%clk 0:02:04.7]} 15... Qxc5+ {[%clk 0:01:48.8]} 16. Qxc5 {[%clk
0:02:04.3]} 16... Rxc5 {[%clk 0:01:48.8]} 17. Bd2 {[%clk 0:02:04.9]} 17... f5
{[%clk 0:01:40]} 18. Rac1 {[%clk 0:01:57.7]} 18... Rac8 {[%clk 0:01:36.8]} 19.
Rfd1 {[%clk 0:01:57.1]} 19... Kf7 {[%clk 0:01:33.9]} 20. Kf2 {[%clk 0:01:56.3]}
20... e5 {[%clk 0:01:21.9]} 21. Nxd5 {[%clk 0:01:50.3]} 21... Rxd5 {[%clk
0:01:18.3]} 22. Bc3 {[%clk 0:01:50.5]} 22... Ke6 {[%clk 0:01:15.9]} 23. h3
{[%clk 0:01:49.3]} 23... g6 {[%clk 0:01:13.6]} 24. g4 {[%clk 0:01:48.8]} 24...
f4 {[%clk 0:00:57.5]} 25. h4 {[%clk 0:01:43.6]} 25... Rcd8 {[%clk 0:00:54.8]}
26. Rg1 {[%clk 0:00:50]} 26... R5d7 {[%clk 0:00:44.2]} 27. Ba5 {[%clk
0:00:49.5]} 27... Rc8 {[%clk 0:00:43.3]} 28. Rgd1 {[%clk 0:00:47]} 28... Rxd1
{[%clk 0:00:27.4]} 29. Rxd1 {[%clk 0:00:46.6]} 29... Rc5 {[%clk 0:00:28]} 30.
Bb4 {[%clk 0:00:46.2]} 30... Rd5 {[%clk 0:00:28.4]} 31. Rc1 {[%clk 0:00:46.5]}
31... Ba6 {[%clk 0:00:26.1]} 32. h5 {[%clk 0:00:43.2]} 32... gxh5 {[%clk
0:00:23.6]} 33. gxh5 {[%clk 0:00:43.5]} 33... Kf5 {[%clk 0:00:24]} 34. Rg1
{[%clk 0:00:29.7]} 34... Rd7 {[%clk 0:00:22.9]} 35. h6 {[%clk 0:00:23.4]} 35...
e4 {[%clk 0:00:14.9]} 36. fxe4+ {[%clk 0:00:23.2]} 36... Kxe4 {[%clk 0:00:15.3]}
37. Rg5 {[%clk 0:00:20.4]} 37... Bb7 {[%clk 0:00:04.5]} 38. Bc3 {[%clk
0:00:19.6]} 38... Re7 {[%clk 0:00:04.9]} 39. a4 {[%clk 0:00:11.9]} 39... Bd5
{[%clk 0:00:04.6]} 40. a5 {[%clk 0:00:11.2]} 40... a6 {[%clk 0:00:02.9]} 41. Bf6
{[%clk 0:00:10.2]} 41... Re6 {[%clk 0:00:02.7]} 42. Bg7 {[%clk 0:00:10.5]} 42...
Bc6 {[%clk 0:00:02.1]} 43. Bc3 {[%clk 0:00:08.4]} 43... Bb5 {[%clk 0:00:01.1]}
44. Bg7 {[%clk 0:00:05]} 44... Bc6 {[%clk 0:00:01.6]} 45. Rc5 {[%clk 0:00:05.3]}
45... Bb5 {[%clk 0:00:02.1]} 46. Rc8 {[%clk 0:00:04.5]} 46... Rc6 {[%clk
0:00:02.4]} 47. Rh8 {[%clk 0:00:04.3]} 47... Rc7 {[%clk 0:00:01.6]} 48. Rxh7
{[%clk 0:00:04.4]} 48... c3 {[%clk 0:00:01.5]} 49. bxc3 {[%clk 0:00:04.3]} 49...
Rd7 {[%clk 0:00:02.1]} 50. Rh8 {[%clk 0:00:03.5]} 50... Rd2 {[%clk 0:00:02.8]}
51. h7 {[%clk 0:00:03.2]} 51... Rxe2+ {[%clk 0:00:03.3]} 52. Kg1 {[%clk
0:00:03.8]} 52... f3 {[%clk 0:00:03.2]} 53. Re8+ {[%clk 0:00:03.1]} 53... Bxe8
{[%clk 0:00:01.8]} 54. h8=Q {[%clk 0:00:03.6]} 54... Re1+ {[%clk 0:00:02.1]} 55.
Kf2 {[%clk 0:00:03.5]} 55... Re2+ {[%clk 0:00:02.1]} 56. Kg1 {[%clk 0:00:02.7]}
56... Re1+ {[%clk 0:00:02.1]} 57. Kh2 {[%clk 0:00:03.2]} 57... f2 {[%clk
0:00:02.3]} 58. Qxe8+ {[%clk 0:00:02.8]} 58... Kd3 {[%clk 0:00:03]} 59. Qd7+
{[%clk 0:00:02.6]} 59... Ke2 {[%clk 0:00:03.4]} 60. Qe6+ {[%clk 0:00:02.7]}
60... Kd1 {[%clk 0:00:03.8]} 61. Qd5+ {[%clk 0:00:02.6]} 61... Kc2 {[%clk
0:00:03.2]} 62. Qf5+ {[%clk 0:00:02.6]} 62... Kd1 {[%clk 0:00:03.9]} 63. Qxf2
{[%clk 0:00:03]} 1-0

[Event "Late-Titled-Tuesday-Blitz-May-07-2024"]
[Site "Chess.com"]
[Date "2024.05.07"]
[Round "6"]
[White "profaVa"]
[Black "LUISMIGUELOV"]
[Result "1/2-1/2"]
[WhiteElo "2372"]
[BlackElo "2210"]
[TimeControl "180+1"]
[EndTime "15:07:44 PDT"]
[Termination "Game drawn by repetition"]

1. e4 {[%clk 0:02:58.7]} 1... c6 {[%clk 0:02:54.5]} 2. Nf3 {[%clk 0:02:59.6]}
2... d5 {[%clk 0:02:53.7]} 3. Nc3 {[%clk 0:03:00.5]} 3... Bg4 {[%clk 0:02:41.8]}
4. h3 {[%clk 0:02:59.8]} 4... Bh5 {[%clk 0:02:39.7]} 5. exd5 {[%clk 0:02:57.3]}
5... cxd5 {[%clk 0:02:39]} 6. Bb5+ {[%clk 0:02:56]} 6... Nc6 {[%clk 0:02:38.1]}
7. g4 {[%clk 0:02:56.2]} 7... Bg6 {[%clk 0:02:37.5]} 8. Ne5 {[%clk 0:02:57.1]}
8... Rc8 {[%clk 0:02:35.8]} 9. d4 {[%clk 0:02:51.3]} 9... e6 {[%clk 0:02:31.4]}
10. h4 {[%clk 0:02:50.2]} 10... f6 {[%clk 0:02:22.7]} 11. Nxg6 {[%clk
0:02:46.5]} 11... hxg6 {[%clk 0:02:22.3]} 12. Bxc6+ {[%clk 0:02:47.4]} 12...
bxc6 {[%clk 0:02:18.2]} 13. Qd3 {[%clk 0:02:48.3]} 13... Ne7 {[%clk 0:02:16.1]}
14. h5 {[%clk 0:02:47.7]} 14... gxh5 {[%clk 0:02:15.3]} 15. gxh5 {[%clk
0:02:47.3]} 15... f5 {[%clk 0:02:12.3]} 16. Bg5 {[%clk 0:02:45.4]} 16... Qd6
{[%clk 0:02:04.6]} 17. Bxe7 {[%clk 0:02:42.8]} 17... Bxe7 {[%clk 0:02:00.7]} 18.
O-O-O {[%clk 0:02:43.7]} 18... Bf6 {[%clk 0:01:56.7]} 19. Rde1 {[%clk
0:02:39.8]} 19... Kd7 {[%clk 0:01:56.6]} 20. Na4 {[%clk 0:02:34.1]} 20... Qf4+
{[%clk 0:01:39.6]} 21. Qe3 {[%clk 0:02:27.5]} 21... Qxe3+ {[%clk 0:01:36.6]} 22.
fxe3 {[%clk 0:02:27]} 22... Be7 {[%clk 0:01:33.4]} 23. Reg1 {[%clk 0:02:24.6]}
23... Rcg8 {[%clk 0:01:32.7]} 24. Rg6 {[%clk 0:02:23.1]} 24... Rh6 {[%clk
0:01:31.3]} 25. Kd2 {[%clk 0:02:17.6]} 25... Bd6 {[%clk 0:01:21.3]} 26. Nc5+
{[%clk 0:02:12.9]} 26... Bxc5 {[%clk 0:01:20.6]} 27. dxc5 {[%clk 0:02:13.8]}
27... Ke7 {[%clk 0:01:20.9]} 28. Rhg1 {[%clk 0:02:11.4]} 28... Kf7 {[%clk
0:01:18.7]} 29. Rxh6 {[%clk 0:02:09.9]} 29... gxh6 {[%clk 0:01:18.1]} 30. Rxg8
{[%clk 0:02:07.9]} 30... Kxg8 {[%clk 0:01:18]} 31. b4 {[%clk 0:01:36.5]} 31...
Kf7 {[%clk 0:01:14.4]} 32. a4 {[%clk 0:01:35.4]} 32... a6 {[%clk 0:01:14.3]} 33.
Kd3 {[%clk 0:01:10]} 33... e5 {[%clk 0:01:12.7]} 34. c4 {[%clk 0:01:09.2]} 34...
dxc4+ {[%clk 0:00:56.9]} 35. Kxc4 {[%clk 0:01:08.8]} 35... Ke6 {[%clk
0:00:47.8]} 36. b5 {[%clk 0:01:00]} 36... cxb5+ {[%clk 0:00:46.7]} 37. axb5
{[%clk 0:00:59.5]} 37... axb5+ {[%clk 0:00:47.2]} 38. Kxb5 {[%clk 0:00:59.8]}
38... f4 {[%clk 0:00:47.7]} 39. exf4 {[%clk 0:00:27]} 39... exf4 {[%clk
0:00:47.6]} 40. c6 {[%clk 0:00:20.7]} 40... f3 {[%clk 0:00:46.8]} 41. Kb6 {[%clk
0:00:15.8]} 41... f2 {[%clk 0:00:42.8]} 42. c7 {[%clk 0:00:16]} 42... f1=Q
{[%clk 0:00:40.5]} 43. c8=Q+ {[%clk 0:00:15.7]} 43... Kf7 {[%clk 0:00:35.8]} 44.
Qd7+ {[%clk 0:00:12.3]} 44... Kg8 {[%clk 0:00:30.9]} 45. Qe6+ {[%clk 0:00:10.9]}
45... Qf7 {[%clk 0:00:23.6]} 46. Qxh6 {[%clk 0:00:11.1]} 46... Qb3+ {[%clk
0:00:11.3]} 47. Kc5 {[%clk 0:00:10.2]} 47... Qc3+ {[%clk 0:00:10.5]} 48. Kd5
{[%clk 0:00:09.9]} 48... Qd3+ {[%clk 0:00:09.8]} 49. Ke5 {[%clk 0:00:09.8]}
49... Qb5+ {[%clk 0:00:07.1]} 50. Ke4 {[%clk 0:00:08.1]} 50... Qc4+ {[%clk
0:00:06.4]} 51. Kf3 {[%clk 0:00:07.7]} 51... Qd3+ {[%clk 0:00:05.8]} 52. Kg4
{[%clk 0:00:07.2]} 52... Qe4+ {[%clk 0:00:04.9]} 53. Kg3 {[%clk 0:00:07]} 53...
Qd3+ {[%clk 0:00:04.4]} 54. Kf2 {[%clk 0:00:06.7]} 54... Qc2+ {[%clk 0:00:04]}
55. Kf3 {[%clk 0:00:06.6]} 55... Qd3+ {[%clk 0:00:04.3]} 56. Kg2 {[%clk
0:00:05.7]} 56... Qc2+ {[%clk 0:00:04]} 57. Kf1 {[%clk 0:00:04.3]} 57... Qd3+
{[%clk 0:00:02.9]} 58. Kf2 {[%clk 0:00:04]} 58... Qc2+ {[%clk 0:00:03.2]} 59.
Kf3 {[%clk 0:00:04]} 59... Qd3+ {[%clk 0:00:03.6]} 1/2-1/2

[Event "Late-Titled-Tuesday-Blitz-May-07-2024"]
[Site "Chess.com"]
[Date "2024.05.07"]
[Round "6"]
[White "Itay121"]
[Black "GoltsevDmitry2000"]
[Result "1/2-1/2"]
[WhiteElo "2556"]
[BlackElo "2742"]
[TimeControl "180+1"]
[EndTime "15:07:46 PDT"]
[Termination "Game drawn - insufficient material"]

1. Nf3 {[%clk 0:03:00.1]} 1... d5 {[%clk 0:02:59.9]} 2. e3 {[%clk 0:02:59.1]}
2... c5 {[%clk 0:02:59.9]} 3. d4 {[%clk 0:02:59.4]} 3... cxd4 {[%clk 0:02:59.1]}
4. exd4 {[%clk 0:03:00.3]} 4... Nf6 {[%clk 0:02:58.8]} 5. Bd3 {[%clk 0:03:00.1]}
5... Nc6 {[%clk 0:02:59.1]} 6. c3 {[%clk 0:03:00.1]} 6... g6 {[%clk 0:02:59.5]}
7. h3 {[%clk 0:03:00.2]} 7... Bg7 {[%clk 0:03:00]} 8. O-O {[%clk 0:03:00.2]}
8... O-O {[%clk 0:03:00.7]} 9. Bf4 {[%clk 0:02:59.3]} 9... Ne4 {[%clk
0:02:59.8]} 10. Nbd2 {[%clk 0:02:59]} 10... f5 {[%clk 0:02:55.3]} 11. Ne5 {[%clk
0:02:52.7]} 11... Nxe5 {[%clk 0:02:53]} 12. Bxe5 {[%clk 0:02:49.6]} 12... Bh6
{[%clk 0:02:51.8]} 13. Nxe4 {[%clk 0:02:38.6]} 13... fxe4 {[%clk 0:02:51.5]} 14.
Be2 {[%clk 0:02:37.2]} 14... Qb6 {[%clk 0:02:46.3]} 15. Qb3 {[%clk 0:02:33.6]}
15... Qxb3 {[%clk 0:02:05.7]} 16. axb3 {[%clk 0:02:34.5]} 16... Bd7 {[%clk
0:02:02.2]} 17. f3 {[%clk 0:02:30]} 17... e3 {[%clk 0:01:45.8]} 18. f4 {[%clk
0:02:25.8]} 18... g5 {[%clk 0:01:45.8]} 19. fxg5 {[%clk 0:02:20]} 19... Bxg5
{[%clk 0:01:45.1]} 20. Rxf8+ {[%clk 0:02:14.2]} 20... Kxf8 {[%clk 0:01:28.3]}
21. Bf3 {[%clk 0:02:14.2]} 21... e6 {[%clk 0:01:23.6]} 22. c4 {[%clk 0:02:12.6]}
22... Bc6 {[%clk 0:01:22]} 23. Kf1 {[%clk 0:01:54.3]} 23... Ke7 {[%clk
0:01:17.5]} 24. Ke2 {[%clk 0:01:54.1]} 24... Bh6 {[%clk 0:01:11.6]} 25. Bh2
{[%clk 0:01:46.6]} 25... a6 {[%clk 0:01:10.3]} 26. Bg1 {[%clk 0:01:42.1]} 26...
dxc4 {[%clk 0:01:05.2]} 27. Bxc6 {[%clk 0:01:37.5]} 27... bxc6 {[%clk
0:01:04.2]} 28. bxc4 {[%clk 0:01:38.1]} 28... Rb8 {[%clk 0:01:03.4]} 29. Ra2
{[%clk 0:01:35.2]} 29... Rb3 {[%clk 0:01:02.6]} 30. h4 {[%clk 0:01:23.4]} 30...
Kf6 {[%clk 0:00:44.2]} 31. g4 {[%clk 0:01:22.8]} 31... Bf4 {[%clk 0:00:43.7]}
32. Kf3 {[%clk 0:01:22.3]} 32... e5 {[%clk 0:00:39.5]} 33. dxe5+ {[%clk
0:01:18.5]} 33... Bxe5 {[%clk 0:00:37.3]} 34. Rxa6 {[%clk 0:01:13.5]} 34... Bd4
{[%clk 0:00:37.5]} 35. Rxc6+ {[%clk 0:01:04.4]} 35... Ke7 {[%clk 0:00:36.1]} 36.
Rc7+ {[%clk 0:00:53.1]} 36... Kd6 {[%clk 0:00:33.1]} 37. Bh2+ {[%clk 0:00:45.8]}
37... Ke6 {[%clk 0:00:33]} 38. Rxh7 {[%clk 0:00:46.4]} 38... Rxb2 {[%clk
0:00:32.5]} 39. Bg3 {[%clk 0:00:42.7]} 39... e2 {[%clk 0:00:26.2]} 40. Be1
{[%clk 0:00:36.5]} 40... Kd6 {[%clk 0:00:14.8]} 41. g5 {[%clk 0:00:34.9]} 41...
Kc5 {[%clk 0:00:15]} 42. g6 {[%clk 0:00:28.7]} 42... Kxc4 {[%clk 0:00:14.9]} 43.
g7 {[%clk 0:00:28]} 43... Rb8 {[%clk 0:00:15.5]} 44. h5 {[%clk 0:00:22.6]} 44...
Kd3 {[%clk 0:00:13.8]} 45. h6 {[%clk 0:00:21.8]} 45... Re8 {[%clk 0:00:10]} 46.
Rh8 {[%clk 0:00:14.7]} 46... Rxh8 {[%clk 0:00:08.8]} 47. gxh8=Q {[%clk
0:00:15.6]} 47... Bxh8 {[%clk 0:00:08.9]} 48. h7 {[%clk 0:00:16.1]} 48... Bg7
{[%clk 0:00:08.4]} 49. Bg3 {[%clk 0:00:14.4]} 49... Bh8 {[%clk 0:00:05.4]} 50.
Be1 {[%clk 0:00:14.2]} 50... Bf6 {[%clk 0:00:05.5]} 51. Kg4 {[%clk 0:00:14.7]}
51... Kc2 {[%clk 0:00:05]} 52. Kf5 {[%clk 0:00:15]} 52... Bh8 {[%clk 0:00:03.6]}
53. Kg6 {[%clk 0:00:14.6]} 53... Kd1 {[%clk 0:00:03.6]} 54. Bh4 {[%clk
0:00:15.1]} 54... Kd2 {[%clk 0:00:03.1]} 55. Bg5+ {[%clk 0:00:13.3]} 55... Kd3
{[%clk 0:00:02.8]} 56. Bh4 {[%clk 0:00:13.1]} 56... Ke3 {[%clk 0:00:03.2]} 57.
Kf7 {[%clk 0:00:10.4]} 57... Kf3 {[%clk 0:00:03.4]} 58. Kg8 {[%clk 0:00:10.9]}
58... Bd4 {[%clk 0:00:02.5]} 59. Be1 {[%clk 0:00:11.3]} 59... Kg2 {[%clk
0:00:02.5]} 60. Bd2 {[%clk 0:00:09.2]} 60... Kf2 {[%clk 0:00:02.5]} 61. Ba5
{[%clk 0:00:08.8]} 61... Kf3 {[%clk 0:00:02.7]} 62. Bb4 {[%clk 0:00:08.7]} 62...
Kf2 {[%clk 0:00:03.1]} 63. h8=Q {[%clk 0:00:07]} 63... Bxh8 {[%clk 0:00:02.5]}
64. Kxh8 {[%clk 0:00:07.9]} 64... Ke3 {[%clk 0:00:02.9]} 65. Kg7 {[%clk
0:00:08.3]} 65... Kd3 {[%clk 0:00:03.4]} 66. Kf6 {[%clk 0:00:08.8]} 66... e1=Q
{[%clk 0:00:03.3]} 67. Bxe1 {[%clk 0:00:09.2]} 1/2-1/2

[Event "Late-Titled-Tuesday-Blitz-May-07-2024"]
[Site "Chess.com"]
[Date "2024.05.07"]
[Round "6"]
[White "gxbg2000"]
[Black "WPWPWP-2015"]
[Result "1-0"]
[WhiteElo "2067"]
[BlackElo "2429"]
[TimeControl "180+1"]
[EndTime "15:07:46 PDT"]
[Termination "gxbg2000 won on time"]

1. e4 {[%clk 0:02:55.4]} 1... c5 {[%clk 0:02:57.4]} 2. Nf3 {[%clk 0:02:53.9]}
2... d6 {[%clk 0:02:57.3]} 3. Bc4 {[%clk 0:02:53]} 3... e6 {[%clk 0:02:56.3]} 4.
O-O {[%clk 0:02:51.2]} 4... Nf6 {[%clk 0:02:56.2]} 5. Re1 {[%clk 0:02:48.1]}
5... Nc6 {[%clk 0:02:54.1]} 6. c3 {[%clk 0:02:48.2]} 6... Be7 {[%clk 0:02:53.6]}
7. d3 {[%clk 0:02:47.7]} 7... O-O {[%clk 0:02:53.4]} 8. Bg5 {[%clk 0:02:47.1]}
8... Bd7 {[%clk 0:02:52.3]} 9. Nbd2 {[%clk 0:02:46.5]} 9... Na5 {[%clk
0:02:51.5]} 10. Bb3 {[%clk 0:02:41.4]} 10... Nxb3 {[%clk 0:02:51]} 11. axb3
{[%clk 0:02:42.3]} 11... a5 {[%clk 0:02:49.6]} 12. Nf1 {[%clk 0:02:41]} 12... b5
{[%clk 0:02:49.5]} 13. Ng3 {[%clk 0:02:38.9]} 13... h6 {[%clk 0:02:47.7]} 14.
Bd2 {[%clk 0:02:35]} 14... a4 {[%clk 0:02:47.7]} 15. bxa4 {[%clk 0:02:34.5]}
15... bxa4 {[%clk 0:02:48.6]} 16. Qc2 {[%clk 0:02:33.2]} 16... Qb6 {[%clk
0:02:46.7]} 17. Reb1 {[%clk 0:02:30.3]} 17... Qb3 {[%clk 0:02:44.1]} 18. Qxb3
{[%clk 0:02:27.2]} 18... axb3 {[%clk 0:02:43.9]} 19. Be3 {[%clk 0:02:25.9]}
19... d5 {[%clk 0:02:35.6]} 20. Nd2 {[%clk 0:02:24.2]} 20... Ba4 {[%clk
0:02:25.6]} 21. c4 {[%clk 0:02:16.6]} 21... d4 {[%clk 0:02:20]} 22. Bf4 {[%clk
0:02:15.8]} 22... g5 {[%clk 0:02:17.9]} 23. Be5 {[%clk 0:02:04.3]} 23... Nd7
{[%clk 0:02:17.4]} 24. f4 {[%clk 0:02:03.9]} 24... f6 {[%clk 0:02:15.6]} 25. Bc7
{[%clk 0:01:56]} 25... Rfc8 {[%clk 0:02:14.8]} 26. fxg5 {[%clk 0:01:43]} 26...
hxg5 {[%clk 0:02:10.3]} 27. e5 {[%clk 0:01:27.2]} 27... Rxc7 {[%clk 0:02:09.6]}
28. exf6 {[%clk 0:01:27.3]} 28... Nxf6 {[%clk 0:02:07.6]} 29. Re1 {[%clk
0:01:25.9]} 29... Kf7 {[%clk 0:02:04]} 30. Nf3 {[%clk 0:01:24.4]} 30... Nd7
{[%clk 0:02:00.6]} 31. Ne4 {[%clk 0:01:19.7]} 31... Kg6 {[%clk 0:01:52.5]} 32.
Ned2 {[%clk 0:00:53.9]} 32... Ra6 {[%clk 0:01:24.3]} 33. Nxb3 {[%clk 0:00:47.6]}
33... Rb7 {[%clk 0:01:24.2]} 34. Nbd2 {[%clk 0:00:42.2]} 34... g4 {[%clk
0:01:18.5]} 35. Ne5+ {[%clk 0:00:33.7]} 35... Nxe5 {[%clk 0:01:16.7]} 36. Rxe5
{[%clk 0:00:33.7]} 36... Rxb2 {[%clk 0:00:59]} 37. Ne4 {[%clk 0:00:33.2]} 37...
Re2 {[%clk 0:00:39.9]} 38. Kf1 {[%clk 0:00:29.3]} 38... Re3 {[%clk 0:00:39.6]}
39. Kf2 {[%clk 0:00:24]} 39... Bh4+ {[%clk 0:00:32.6]} 40. g3 {[%clk 0:00:23.7]}
40... Be7 {[%clk 0:00:32.2]} 41. Ra2 {[%clk 0:00:22.1]} 41... Kf7 {[%clk
0:00:27.7]} 42. Rh5 {[%clk 0:00:20.3]} 42... Rf3+ {[%clk 0:00:21.3]} 43. Ke2
{[%clk 0:00:19.6]} 43... Re3+ {[%clk 0:00:21.6]} 44. Kf2 {[%clk 0:00:19.1]}
44... Rxd3 {[%clk 0:00:21.2]} 45. Rh7+ {[%clk 0:00:17.5]} 45... Ke8 {[%clk
0:00:21.2]} 46. Rb2 {[%clk 0:00:14.2]} 46... Bb3 {[%clk 0:00:20.6]} 47. Rh8+
{[%clk 0:00:12.6]} 47... Kd7 {[%clk 0:00:20.2]} 48. Rb8 {[%clk 0:00:12.8]} 48...
Ra3 {[%clk 0:00:18.2]} 49. Rb7+ {[%clk 0:00:10.9]} 49... Ke8 {[%clk 0:00:18.6]}
50. Rb8+ {[%clk 0:00:10.7]} 50... Kf7 {[%clk 0:00:18.8]} 51. Rb7 {[%clk
0:00:11.4]} 51... Rf3+ {[%clk 0:00:15.6]} 52. Kg2 {[%clk 0:00:11]} 52... Kf8
{[%clk 0:00:05.7]} 53. Rb8+ {[%clk 0:00:10.4]} 53... Kg7 {[%clk 0:00:05.4]} 54.
Rb7 {[%clk 0:00:11]} 54... Kf7 {[%clk 0:00:05.9]} 55. Ng5+ {[%clk 0:00:11]}
55... Kf6 {[%clk 0:00:05]} 56. Nxf3 {[%clk 0:00:11.9]} 56... gxf3+ {[%clk
0:00:05]} 57. Kf2 {[%clk 0:00:12.2]} 57... Bd1 {[%clk 0:00:04.8]} 58. R7b6
{[%clk 0:00:06.6]} 58... Be2 {[%clk 0:00:03.6]} 59. Rb7 {[%clk 0:00:06.1]} 59...
Re3 {[%clk 0:00:02.7]} 60. h4 {[%clk 0:00:05.1]} 60... Re4 {[%clk 0:00:02.3]}
61. R2b6 {[%clk 0:00:03.9]} 61... d3 {[%clk 0:00:01.8]} 62. Rb2 {[%clk
0:00:03.3]} 62... Rxc4 {[%clk 0:00:00.9]} 63. Rd2 {[%clk 0:00:03]} 63... Rc2
{[%clk 0:00:00.6]} 64. Rb2 {[%clk 0:00:02.8]} 1-0

[Event "Late-Titled-Tuesday-Blitz-May-07-2024"]
[Site "Chess.com"]
[Date "2024.05.07"]
[Round "6"]
[White "ellatambien"]
[Black "scandalgod"]
[Result "0-1"]
[WhiteElo "2670"]
[BlackElo "2534"]
[TimeControl "180+1"]
[EndTime "15:07:49 PDT"]
[Termination "scandalgod won by resignation"]

1. Nf3 {[%clk 0:03:00.9]} 1... d5 {[%clk 0:02:56.8]} 2. c4 {[%clk 0:03:00.4]}
2... c6 {[%clk 0:02:56.5]} 3. cxd5 {[%clk 0:03:00.1]} 3... cxd5 {[%clk
0:02:56.8]} 4. d4 {[%clk 0:03:01]} 4... Nf6 {[%clk 0:02:56.9]} 5. Nc3 {[%clk
0:03:01.4]} 5... Nc6 {[%clk 0:02:57.5]} 6. Bf4 {[%clk 0:03:01.7]} 6... a6 {[%clk
0:02:58]} 7. e3 {[%clk 0:03:01.9]} 7... Bg4 {[%clk 0:02:57.9]} 8. Be2 {[%clk
0:03:02.2]} 8... e6 {[%clk 0:02:57.6]} 9. Ne5 {[%clk 0:03:02.3]} 9... Bxe2
{[%clk 0:02:55.5]} 10. Qxe2 {[%clk 0:03:02.9]} 10... Rc8 {[%clk 0:02:54.9]} 11.
O-O {[%clk 0:03:02.2]} 11... Bd6 {[%clk 0:02:54.9]} 12. Nxc6 {[%clk 0:03:01.1]}
12... Rxc6 {[%clk 0:02:54.6]} 13. Bxd6 {[%clk 0:03:00.1]} 13... Qxd6 {[%clk
0:02:54.2]} 14. Na4 {[%clk 0:02:58.8]} 14... O-O {[%clk 0:02:47.4]} 15. Nc5
{[%clk 0:02:54.8]} 15... Qc7 {[%clk 0:02:29.2]} 16. b4 {[%clk 0:02:50.8]} 16...
Rc8 {[%clk 0:02:26.9]} 17. a4 {[%clk 0:02:50.2]} 17... Qb6 {[%clk 0:02:07.8]}
18. Rfb1 {[%clk 0:02:43.1]} 18... R6c7 {[%clk 0:02:04.6]} 19. g3 {[%clk
0:02:37]} 19... h6 {[%clk 0:02:04.7]} 20. Kg2 {[%clk 0:02:35.9]} 20... Ne4
{[%clk 0:02:03.7]} 21. Rb2 {[%clk 0:01:57.9]} 21... Nd6 {[%clk 0:01:57.8]} 22.
Rab1 {[%clk 0:01:45.9]} 22... Nc4 {[%clk 0:01:57.5]} 23. Rb3 {[%clk 0:01:46.3]}
23... Qa7 {[%clk 0:01:54]} 24. b5 {[%clk 0:01:41.7]} 24... axb5 {[%clk
0:01:45.3]} 25. axb5 {[%clk 0:01:42.6]} 25... b6 {[%clk 0:01:24.1]} 26. Na6
{[%clk 0:01:42]} 26... Re7 {[%clk 0:01:20.6]} 27. Nb4 {[%clk 0:01:37.7]} 27...
Qb7 {[%clk 0:01:16.8]} 28. h4 {[%clk 0:01:32.7]} 28... Ree8 {[%clk 0:01:13.6]}
29. Kh2 {[%clk 0:01:30.6]} 29... Ra8 {[%clk 0:01:13.5]} 30. h5 {[%clk
0:01:27.5]} 30... e5 {[%clk 0:01:13.5]} 31. dxe5 {[%clk 0:01:26]} 31... Rxe5
{[%clk 0:01:11.4]} 32. Nc6 {[%clk 0:01:24.2]} 32... Re6 {[%clk 0:01:09.3]} 33.
Nd4 {[%clk 0:01:24]} 33... Re5 {[%clk 0:01:06.9]} 34. Rc3 {[%clk 0:01:15.3]}
34... Qe7 {[%clk 0:01:04.9]} 35. Nc6 {[%clk 0:01:04]} 35... Qf6 {[%clk
0:00:59.5]} 36. Nxe5 {[%clk 0:01:03]} 36... Nxe5 {[%clk 0:00:55.6]} 37. Rbc1
{[%clk 0:01:00.4]} 37... Qf5 {[%clk 0:00:53.1]} 38. Kg2 {[%clk 0:00:53.8]} 38...
Qe4+ {[%clk 0:00:47.5]} 39. f3 {[%clk 0:00:51.4]} 39... Qf5 {[%clk 0:00:47.8]}
40. g4 {[%clk 0:00:49.8]} 40... Qe6 {[%clk 0:00:48]} 41. Rc6 {[%clk 0:00:42.7]}
41... Qe8 {[%clk 0:00:39.8]} 42. Rxb6 {[%clk 0:00:37.9]} 42... Nc4 {[%clk
0:00:39.9]} 43. Rxc4 {[%clk 0:00:33.4]} 43... dxc4 {[%clk 0:00:39.8]} 44. Rc6
{[%clk 0:00:33.6]} 44... Ra3 {[%clk 0:00:31.6]} 45. Qxc4 {[%clk 0:00:29.1]}
45... Qxe3 {[%clk 0:00:27.3]} 46. Rc8+ {[%clk 0:00:26.6]} 46... Kh7 {[%clk
0:00:26.2]} 47. Qc2+ {[%clk 0:00:26.3]} 47... Rd3 {[%clk 0:00:25.8]} 48. Qf2
{[%clk 0:00:22.5]} 48... Rd2 {[%clk 0:00:21.6]} 49. Qxd2 {[%clk 0:00:22.5]}
49... Qxd2+ {[%clk 0:00:21.8]} 50. Kg3 {[%clk 0:00:23.4]} 50... Qd6+ {[%clk
0:00:21.6]} 51. Kg2 {[%clk 0:00:23.7]} 51... Qd7 {[%clk 0:00:19.8]} 52. Rb8
{[%clk 0:00:22.8]} 52... Qc7 {[%clk 0:00:19.7]} 53. Rf8 {[%clk 0:00:21.5]} 53...
Qc2+ {[%clk 0:00:19.1]} 54. Kg3 {[%clk 0:00:21.3]} 54... Qc7+ {[%clk 0:00:18]}
55. Kg2 {[%clk 0:00:21.4]} 55... Qe7 {[%clk 0:00:17.9]} 56. Rc8 {[%clk
0:00:20.1]} 56... Qe2+ {[%clk 0:00:17.3]} 57. Kg3 {[%clk 0:00:19.9]} 57... Qxb5
{[%clk 0:00:17.9]} 58. Rc2 {[%clk 0:00:17.1]} 58... Qe5+ {[%clk 0:00:17.5]} 59.
Kg2 {[%clk 0:00:17.4]} 59... Qe1 {[%clk 0:00:17.4]} 60. Rf2 {[%clk 0:00:16.1]}
60... g6 {[%clk 0:00:17.5]} 61. hxg6+ {[%clk 0:00:14.8]} 61... Kxg6 {[%clk
0:00:17.6]} 62. Ra2 {[%clk 0:00:13.6]} 62... f6 {[%clk 0:00:15.7]} 63. Rf2
{[%clk 0:00:12.9]} 63... Kg5 {[%clk 0:00:15.9]} 64. Ra2 {[%clk 0:00:08]} 64...
Kh4 {[%clk 0:00:14.9]} 65. Rf2 {[%clk 0:00:07.3]} 65... Qe5 {[%clk 0:00:14.4]}
66. Kf1 {[%clk 0:00:04.3]} 66... Kg3 {[%clk 0:00:13.3]} 67. f4 {[%clk
0:00:01.7]} 67... Qb5+ {[%clk 0:00:12.6]} 68. Kg1 {[%clk 0:00:01.4]} 68... Qb1+
{[%clk 0:00:12]} 0-1